bitfinex/quotes_SOLUSD_20240708
["timestamp","ask_amount","ask_price","bid_price","bid_amount"]
[1720400970720,15.2949,129.38,129.26,6.6651]
[1720400970721,115.0,129.34,129.26,6.6651]
[1720400971046,100.0,129.32,129.19,6.6651]
[1720400971514,20.0,129.31,129.19,6.6651]
[1720400972020,100.0,129.3,129.19,6.6651]
[1720400972216,20.0,129.31,129.19,6.6651]
[1720400972425,100.0,129.32,129.19,29.9451]
[1720400972637,100.0,129.32,129.2,20.0]
[1720400972944,100.0,129.33,129.21,0.17]
[1720400974133,100.0,129.31,129.21,0.17]
[1720400974519,100.0,129.32,129.21,0.17]
[1720400975440,115.0,129.32,129.19,6.6651]
[1720400975650,100.0,129.3,129.19,6.6651]
[1720400975858,100.17,129.31,129.19,6.6651]
[1720400976038,100.0,129.31,129.19,6.6651]
[1720400976536,15.2949,129.38,129.19,6.6651]
[1720400976537,15.0,129.28,129.19,6.6651]
[1720400976721,20.0,129.3,129.12,40.39]
[1720400976722,100.0,129.25,129.12,40.39]
[1720400976919,100.0,129.27,129.13,23.28]
[1720400977227,100.0,129.25,129.12,40.39]
[1720400977419,100.0,129.28,129.12,40.39]
[1720400977625,30.4503,129.3,129.12,40.39]
[1720400977626,100.0,129.26,129.12,40.39]
[1720400978317,100.0,129.24,129.12,40.39]
[1720400978522,0.17,129.27,129.11,6.3648]
[1720400978523,100.0,129.26,129.11,6.3648]
[1720400978717,100.0,129.26,129.11,14.1438]
[1720400978932,15.0,129.25,129.11,37.4238]
[1720400979141,100.0,129.26,129.11,37.4238]
[1720400979424,15.0,129.31,129.16,23.28]
[1720400979654,15.0,129.31,129.17,29.3615]
[1720400980451,15.0,129.31,129.18,20.17]
[1720400980633,100.0,129.29,129.18,20.17]
[1720400980963,100.0,129.3,129.18,0.17]
[1720400981248,100.0,129.3,129.18,20.17]
[1720400982030,100.0,129.3,129.18,43.45]
[1720400982526,15.0,129.31,129.18,43.45]
[1720400983654,100.0,129.3,129.18,20.17]
[1720400983966,100.0,129.3,129.17,6.0815]
[1720400983967,15.0,129.29,129.17,6.0815]
[1720400984452,100.0,129.3,129.17,6.0815]
[1720400984631,15.0,129.27,129.17,6.0815]
[1720400984831,15.0,129.24,129.11,6.4185]
[1720400985853,15.0,129.22,129.11,6.4185]
[1720400986447,15.0,129.24,129.11,6.4185]
[1720400986639,15.0,129.24,129.11,29.6985]
[1720400986953,15.0,129.24,129.12,31.059]
[1720400987154,15.0,129.24,129.13,20.0]
[1720400987354,15.0,129.24,129.12,20.0]
[1720400987528,100.0,129.22,129.13,0.17]
[1720400987733,15.0,129.24,129.13,0.17]
[1720400987935,100.0,129.23,129.12,20.0]
[1720400988136,15.0,129.24,129.12,20.0]
[1720400988654,15.0,129.24,129.13,7.779]
[1720400988865,100.0,129.26,129.14,43.28]
[1720400989174,15.0,129.24,129.12,20.0]
[1720400989339,115.0,129.24,129.11,6.4185]
[1720400989543,20.0,129.23,129.11,6.4185]
[1720400990469,15.0,129.19,129.11,6.4185]
[1720400990673,35.0,129.23,129.11,6.4185]
[1720400990853,135.0,129.23,129.11,6.4185]
[1720400991470,35.0,129.23,129.11,6.4185]
[1720400991848,35.0,129.23,129.12,0.17]
[1720400992068,100.0,129.26,129.12,51.229]
[1720400992270,15.0,129.24,129.12,27.949]
[1720400992941,100.0,129.26,129.14,23.28]
[1720400993150,15.0,129.25,129.15,20.17]
[1720400993666,15.0,129.25,129.15,0.17]
[1720400993872,14.5,129.25,129.14,20.17]
[1720400994052,14.5,129.23,129.14,20.17]
[1720400994364,14.5,129.23,129.13,40.39]
[1720400994567,14.5,129.23,129.12,7.779]
[1720400995270,15.9148,129.32,129.12,7.779]
[1720400995271,14.5,129.21,129.12,7.779]
[1720400995650,100.0,129.2,129.11,6.4185]
[1720400995874,14.5,129.19,129.11,6.4185]
[1720400996343,114.5,129.19,129.11,6.4185]
[1720400996848,14.5,129.21,129.11,6.4185]
[1720400997052,100.0,129.21,129.11,6.4185]
[1720400997262,14.5,129.23,129.11,6.4185]
[1720400997461,20.0,129.22,129.11,6.4185]
[1720400997642,114.5,129.21,129.11,6.4185]
[1720400998066,14.5,129.21,129.11,6.4185]
[1720400998366,14.5,129.17,129.11,6.4185]
[1720400998555,114.5,129.19,129.11,6.4185]
[1720400998762,14.5,129.19,129.11,6.4185]
[1720400998972,35.0756,129.22,129.06,15.2524099]
[1720400998973,14.5,129.15,129.06,15.2524099]
[1720400999659,14.5,129.17,129.06,15.2524099]
[1720400999851,14.5,129.21,129.06,38.5324099]
[1720401000265,100.0,129.18,129.06,15.2524099]
[1720401000450,14.5,129.16,129.06,15.2524099]
[1720401000646,20.0,129.2,129.06,15.2524099]
[1720401000647,14.5,129.14,129.06,15.2524099]
[1720401000857,14.5,129.14,129.06,7.4734099]
[1720401001377,20.0,129.13,129.06,7.4734099]
[1720401001751,14.5,129.12,129.06,0.8362099]
[1720401002248,120.0,129.11,129.06,0.8362099]
[1720401002471,14.5,129.08,129.06,0.8362099]
[1720401002669,114.5,129.08,129.06,0.8362099]
[1720401002978,100.0,129.08,129.06,0.8362099]
[1720401003274,100.0,129.1,129.06,0.8362099]
[1720401003871,14.5,129.01,129.0,1.0]
[1720401004379,34.5,129.01,129.0,1.0]
[1720401004761,14.5,129.01,129.0,1.0]
[1720401005370,34.5,129.01,129.0,1.0]
[1720401005886,34.67,129.01,129.0,1.0]
[1720401006083,14.5,129.01,129.0,1.0]
[1720401006380,20.0,129.01,129.0,1.0]
[1720401006695,134.5,129.01,129.0,1.0]
[1720401007055,100.0,129.03,129.0,1.0]
[1720401007462,100.0,129.01,129.0,1.0]
[1720401007785,120.0,129.01,129.0,1.0]
[1720401008384,20.0,129.01,129.0,1.0]
[1720401008573,100.0,129.05,129.0,1.0]
[1720401008964,100.0,129.03,129.0,1.0]
[1720401009291,22.6641,129.09,129.0,1.0]
[1720401009292,114.5,129.01,129.0,1.0]
[1720401010377,134.5,129.01,129.0,1.0]
[1720401011483,14.5,129.01,129.0,1.0]
[1720401011685,100.0,129.02,129.0,1.0]
[1720401012072,14.5,129.01,129.0,1.0]
[1720401012584,114.5,129.01,129.0,1.0]
[1720401012774,134.5,129.01,129.0,1.0]
[1720401012976,14.5,129.03,129.0,1.0]
[1720401013183,14.5,129.01,129.0,1.0]
[1720401013381,114.5,129.01,129.0,1.0]
[1720401014289,34.5,129.01,129.0,1.0]
[1720401014505,134.5,129.01,129.0,1.0]
[1720401014795,14.5,128.96,128.94,0.8362099]
[1720401015092,14.5,128.9,128.81,0.8362099]
[1720401015385,14.5,128.88,128.81,0.8362099]
[1720401015589,114.5,128.88,128.81,0.8362099]
[1720401016395,100.0,128.84,128.81,0.8362099]
[1720401016573,14.5,128.86,128.81,0.8362099]
[1720401016574,114.5,128.86,128.81,0.8362099]
[1720401016769,20.0,128.85,128.81,0.8362099]
[1720401017266,100.0,128.86,128.81,0.8362099]
[1720401017469,100.0,128.84,128.81,0.8362099]
[1720401017690,114.5,128.82,128.8,1.0]
[1720401017987,20.0,128.81,128.8,1.0]
[1720401018168,100.0,128.81,128.8,1.0]
[1720401018367,14.5,128.82,128.8,1.0]
[1720401018586,120.0,128.81,128.8,1.0]
[1720401019099,100.0,128.81,128.8,1.0]
[1720401019394,100.0,128.85,128.8,1.0]
[1720401019694,100.0,128.86,128.8,1.0]
[1720401020072,14.5,128.87,128.8,6.4346]
[1720401020266,14.5,128.87,128.8,1.0]
[1720401020480,100.0,128.82,128.8,1.0]
[1720401020684,14.5,128.81,128.8,1.0]
[1720401021080,100.0,128.73,128.71,0.2]
[1720401021504,100.0,128.77,128.71,0.2]
[1720401021883,14.5,128.79,128.71,0.2]
[1720401022284,114.5,128.79,128.71,0.2]
[1720401022499,26.3951,128.88,128.73,5.4375]
[1720401022500,100.0,128.81,128.73,5.4375]
[1720401022686,14.5,128.79,128.71,5.6382]
[1720401022894,100.0,128.81,128.72,20.17]
[1720401023203,114.5,128.84,128.76,5.4364]
[1720401023408,114.5,128.84,128.77,5.606]
[1720401023611,114.5,128.84,128.77,0.17]
[1720401023787,114.5,128.92,128.8,5.4347]
[1720401023995,15.3429,128.95,128.76,20.17]
[1720401023996,114.5,128.9,128.81,20.17]
[1720401024234,114.5,128.9,128.76,20.17]
[1720401024389,15.3429,128.95,128.82,6.5384]
[1720401024712,100.0,128.96,128.83,43.28]
[1720401024890,29.8429,129.02,128.83,60.39]
[1720401024891,100.0,128.98,128.83,60.39]
[1720401025090,100.0,128.98,128.87,5.4318]
[1720401025291,100.0,128.98,128.85,5.4326]
[1720401025599,114.5,128.96,128.86,20.0]
[1720401025785,14.5,128.96,128.86,20.0]
[1720401026115,100.0,129.0,128.86,20.0]
[1720401026426,100.0,129.0,128.85,63.67]
[1720401026630,18.71851753,129.21,128.92,5.4294]
[1720401026631,14.5,129.03,128.92,5.4294]
[1720401026908,100.0,129.04,128.94,5.4288]
[1720401027109,14.5,129.03,128.95,0.17]
[1720401027411,114.5,129.01,128.9,20.0]
[1720401027611,100.0,128.97,128.88,6.5813]
[1720401027816,14.5,128.96,128.88,6.5813]
[1720401027997,14.5,128.94,128.88,12.0126]
[1720401028193,14.5,128.94,128.88,6.5813]
[1720401029004,14.5,128.96,128.88,6.5813]
[1720401029311,100.0,128.93,128.84,5.433]
[1720401029503,114.5,128.92,128.83,6.5813]
[1720401029696,14.5,128.9,128.83,6.5813]
[1720401029889,114.5,128.9,128.83,6.5813]
[1720401030093,5.4318,128.87,128.83,6.5813]
[1720401030290,114.5,128.9,128.74,6.5813]
[1720401030511,114.5,128.88,128.74,6.5813]
[1720401030709,14.5,128.86,128.75,5.4364]
[1720401030914,14.5,128.86,128.74,6.5813]
[1720401031208,16.1852,128.99,128.74,6.5813]
[1720401031209,14.5,128.81,128.74,6.5813]
[1720401031601,14.5,128.81,128.71,0.2]
[1720401031988,14.5,128.81,128.72,5.4377]
[1720401032305,114.5,128.81,128.71,5.6384]
[1720401032489,14.5,128.81,128.71,5.6384]
[1720401032800,14.5,128.79,128.72,20.0]
[1720401033110,14.5,128.78,128.71,0.2]
[1720401034291,100.0,128.79,128.71,0.2]
[1720401034292,14.5,128.73,128.71,0.2]
[1720401034689,20.0,128.77,128.71,0.2]
[1720401034690,14.5,128.75,128.71,0.2]
[1720401035391,100.0,128.73,128.71,0.2]
[1720401035818,14.5,128.73,128.71,0.2]
[1720401036495,100.0,128.72,128.71,0.2]
[1720401036720,100.0,128.69,128.68,0.8362099]
[1720401037089,100.0,128.66,128.55,0.8362099]
[1720401037288,100.0,128.66,128.55,14.4493099]
[1720401037289,100.0,128.63,128.55,14.4493099]
[1720401037511,14.5,128.66,128.55,14.4493099]
[1720401037512,100.0,128.65,128.58,13.6098]
[1720401037715,100.0,128.65,128.59,5.4434]
[1720401037926,100.0,128.65,128.55,0.8362099]
[1720401038092,100.0,128.65,128.57,5.4444]
[1720401038287,100.0,128.63,128.55,0.8362099]
[1720401038521,100.0,128.63,128.51,6.6773]
[1720401038522,100.0,128.63,128.59,0.5422837]
[1720401039207,100.0,128.61,128.59,0.5422837]
[1720401039601,115.349,128.63,128.59,0.5422837]
[1720401039811,100.0,128.6,128.59,0.5422837]
[1720401040224,114.5,128.62,128.59,0.5422837]
[1720401040514,15.349,128.63,128.59,0.5422837]
[1720401040515,100.0,128.6,128.59,0.5422837]
[1720401040927,100.0,128.58,128.51,0.2]
[1720401041101,100.0,128.58,128.51,5.6468]
[1720401041418,100.0,128.6,128.51,0.2]
[1720401041615,100.0,128.6,128.51,5.447]
[1720401041928,100.0,128.62,128.5,40.89]
[1720401042218,100.0,128.62,128.51,33.6168]
[1720401042417,100.0,128.62,128.5,0.5]
[1720401042418,100.0,128.59,128.5,0.5]
[1720401042609,14.5,128.59,128.5,0.5]
[1720401042822,6.0565,128.69,128.53,5.446]
[1720401042823,100.0,128.6,128.53,5.446]
[1720401043028,14.5,128.61,128.56,5.4447]
[1720401043205,100.0,128.63,128.5,40.89]
[1720401043515,100.0,128.61,128.5,0.5]
[1720401043720,14.09609026,128.69,128.5,0.5]
[1720401043721,114.5,128.63,128.5,0.5]
[1720401043921,100.0,128.63,128.56,13.612]
[1720401044103,100.0,128.63,128.57,5.4444]
[1720401044301,100.0,128.63,128.56,19.0568]
[1720401044638,14.5,128.65,128.59,13.6088]
[1720401044809,100.0,128.68,128.59,13.6088]
[1720401044810,14.5,128.68,128.59,13.6088]
[1720401044996,14.5,128.68,128.6,0.17]
[1720401045312,14.5,128.68,128.56,20.0]
[1720401045501,100.0,128.66,128.56,20.0]
[1720401045705,114.5,128.68,128.57,0.17]
[1720401046599,115.6994,128.7,128.57,0.17]
[1720401046823,14.5,128.69,128.57,0.17]
[1720401047323,100.0,128.66,128.57,0.17]
[1720401047634,14.5,128.67,128.57,0.17]
[1720401048529,100.0,128.66,128.57,0.17]
[1720401048820,14.5,128.67,128.57,0.17]
[1720401049323,100.0,128.7,128.58,6.4926]
[1720401049501,14.5,128.68,128.59,20.17]
[1720401050409,114.5,128.68,128.59,20.17]
[1720401050726,14.5,128.62,128.52,46.9878]
[1720401050929,20.0,128.67,128.52,6.5978]
[1720401050930,14.5,128.6,128.52,6.5978]
[1720401051229,16.2973,128.65,128.47,0.15]
[1720401051230,114.5,128.58,128.47,0.15]
[1720401051425,100.0,128.55,128.47,0.15]
[1720401051623,14.5,128.56,128.47,0.15]
[1720401052114,14.5,128.59,128.47,0.15]
[1720401052307,114.5,128.59,128.47,0.15]
[1720401052507,14.5,128.57,128.47,0.15]
[1720401052706,16.2973,128.65,128.47,0.15]
[1720401052707,14.5,128.55,128.47,0.15]
[1720401052927,14.5,128.57,128.47,0.15]
[1720401053136,14.5,128.59,128.47,0.15]
[1720401053340,14.5,128.59,128.48,40.42333333]
[1720401053519,14.5,128.57,128.48,40.42333333]
[1720401053828,100.0,128.56,128.48,0.03333333]
[1720401054004,100.0,128.54,128.48,0.03333333]
[1720401054531,100.0,128.51,128.48,0.03333333]
[1720401055007,14.5,128.52,128.48,0.03333333]
[1720401055328,100.0,128.54,128.48,0.03333333]
[1720401055532,114.5,128.54,128.48,0.03333333]
[1720401055711,14.5,128.52,128.48,0.03333333]
[1720401056611,100.0,128.53,128.48,0.03333333]
[1720401056928,114.5,128.53,128.48,0.03333333]
[1720401057133,14.5,128.51,128.48,0.03333333]
[1720401057627,100.0,128.53,128.48,0.03333333]
[1720401057837,114.5,128.59,128.48,0.03333333]
[1720401058011,14.5,128.59,128.48,0.03333333]
[1720401058214,100.0,128.57,128.48,0.03333333]
[1720401058641,114.5,128.59,128.49,6.2466]
[1720401058813,100.0,128.57,128.49,6.2466]
[1720401059013,14.5,128.57,128.49,6.2466]
[1720401059214,114.5,128.54,128.48,0.03333333]
[1720401059521,14.5,128.56,128.48,0.03333333]
[1720401059919,14.5,128.53,128.48,0.03333333]
[1720401060139,14.5,128.55,128.48,0.03333333]
[1720401060306,114.5,128.57,128.48,0.03333333]
[1720401060523,114.5,128.59,128.48,0.03333333]
[1720401060729,114.5,128.59,128.49,0.17]
[1720401061037,100.0,128.56,128.48,0.03333333]
[1720401061331,14.5,128.52,128.48,0.03333333]
[1720401061713,100.0,128.54,128.48,0.03333333]
[1720401062007,100.0,128.52,128.48,0.03333333]
[1720401062210,100.0,128.51,128.48,0.03333333]
[1720401063144,14.5,128.49,128.48,0.03333333]
[1720401063355,114.5,128.49,128.48,0.03333333]
[1720401063644,100.0,128.49,128.48,0.03333333]
[1720401063833,100.0,128.53,128.48,0.03333333]
[1720401064034,100.0,128.51,128.48,0.03333333]
[1720401064220,114.5,128.52,128.48,0.03333333]
[1720401064419,14.5,128.52,128.48,0.03333333]
[1720401064712,100.0,128.51,128.48,0.03333333]
[1720401064916,14.5,128.52,128.48,0.03333333]
[1720401065113,100.0,128.53,128.48,0.03333333]
[1720401065313,100.0,128.49,128.48,0.03333333]
[1720401065732,114.5,128.5,128.48,0.03333333]
[1720401065918,100.0,128.5,128.48,0.03333333]
[1720401066116,100.0,128.53,128.48,0.03333333]
[1720401066318,100.0,128.5,128.48,0.03333333]
[1720401066619,114.5,128.49,128.48,0.03333333]
[1720401066827,34.5,128.49,128.48,0.03333333]
[1720401067220,34.5,128.49,128.47,0.15]
[1720401067416,120.0,128.48,128.47,0.15]
[1720401067825,20.0,128.48,128.46,0.8686048]
[1720401068029,114.5,128.47,128.46,0.8686048]
[1720401068216,100.0,128.42,128.41,0.24614459]
[1720401068436,100.0,128.38,128.33,0.8686048]
[1720401068639,14.5,128.37,128.33,0.8686048]
[1720401068816,30.0,128.37,128.33,0.8686048]
[1720401069323,114.5,128.34,128.33,0.8686048]
[1720401069626,100.0,128.28,128.27,0.03333333]
[1720401069946,130.17,128.28,128.27,0.03333333]
[1720401070441,100.0,128.28,128.27,0.03333333]
[1720401070627,120.17,128.28,128.27,0.03333333]
[1720401070827,114.5,128.22,128.17,0.15]
[1720401071025,130.0,128.28,128.18,6.6013]
[1720401071239,100.0,128.3,128.24,5.4582]
[1720401071535,100.0,128.34,128.18,6.6013]
[1720401071845,15.3728,128.4,128.2,40.39]
[1720401071846,100.0,128.33,128.2,40.39]
[1720401072017,100.0,128.33,128.21,13.8485]
[1720401072215,100.0,128.29,128.21,0.2]
[1720401072812,100.0,128.33,128.21,0.2]
[1720401073028,100.0,128.35,128.25,5.4576]
[1720401073354,100.0,128.37,128.27,40.39]
[1720401073529,100.0,128.4,128.28,13.6413]
[1720401073739,100.0,128.43,128.31,40.39]
[1720401073928,100.0,128.43,128.32,20.17]
[1720401074132,100.0,128.43,128.33,5.4543]
[1720401074354,15.6875,128.56,128.34,20.17]
[1720401074355,100.0,128.45,128.34,20.17]
[1720401074523,100.0,128.43,128.34,0.17]
[1720401074720,114.5,128.43,128.34,0.17]
[1720401074951,100.0,128.43,128.33,0.17]
[1720401075157,15.6875,128.56,128.33,0.17]
[1720401075158,100.0,128.45,128.35,45.8437]
[1720401075332,100.0,128.45,128.36,20.17]
[1720401075532,100.0,128.48,128.36,20.17]
[1720401075750,14.5,128.55,128.39,40.89]
[1720401075926,100.0,128.5,128.4,20.17]
[1720401076122,14.5,128.55,128.41,6.0634]
[1720401076323,100.0,128.52,128.42,0.17]
[1720401076636,100.0,128.56,128.43,40.39]
[1720401076823,100.0,128.56,128.44,0.17]
[1720401077028,100.0,128.56,128.47,40.39]
[1720401077229,100.0,128.56,128.48,20.17]
[1720401077523,114.5,128.62,128.48,20.17]
[1720401077723,114.5,128.62,128.48,25.6183]
[1720401077927,14.5,128.62,128.51,40.39]
[1720401078155,14.5,128.62,128.48,20.17]
[1720401078156,100.0,128.59,128.48,20.17]
[1720401078449,14.5,128.58,128.48,0.17]
[1720401078646,114.5,128.58,128.48,0.17]
[1720401078851,14.5,128.54,128.46,20.0]
[1720401079152,14.5,128.54,128.47,0.17]
[1720401079444,15.8686048,128.66,128.47,0.17]
[1720401079445,100.0,128.57,128.47,0.17]
[1720401080049,114.5,128.57,128.47,0.17]
[1720401080377,100.0,128.55,128.47,0.17]
[1720401080526,114.5,128.55,128.47,0.17]
[1720401080724,14.5,128.52,128.45,40.39]
[1720401081144,100.0,128.55,128.43,13.6257]
[1720401081347,114.5,128.6,128.46,40.39]
[1720401081548,100.0,128.58,128.46,54.0124]
[1720401081735,114.5,128.6,128.46,59.4615]
[1720401081937,114.5,128.6,128.47,25.4486]
[1720401082159,100.0,128.58,128.47,20.0]
[1720401082451,114.5,128.58,128.48,0.17]
[1720401082659,100.0,128.58,128.48,0.17]
[1720401082840,100.0,128.58,128.47,0.17]
[1720401083155,100.0,128.58,128.47,5.6183]
[1720401083341,100.0,128.58,128.48,20.0]
[1720401083542,100.0,128.58,128.49,0.17]
[1720401083869,0.8686048,128.66,128.5,40.39]
[1720401083870,114.5,128.65,128.5,40.39]
[1720401084044,100.8686048,128.66,128.51,20.17]
[1720401084278,100.0,128.64,128.52,19.0624]
[1720401084447,100.0,128.64,128.53,5.4459]
[1720401084760,0.8686048,128.66,128.54,20.17]
[1720401084933,0.8686048,128.66,128.55,19.7706]
[1720401085128,0.8686048,128.66,128.55,43.0506]
[1720401085349,0.8686048,128.66,128.58,54.0001]
[1720401085559,0.8686048,128.66,128.6,5.4429]
[1720401085735,0.8686048,128.66,128.62,40.39]
[1720401085930,100.0,128.72,128.62,40.39]
[1720401085931,100.0,128.72,128.63,20.17]
[1720401086236,114.5,128.72,128.63,20.17]
[1720401086450,100.0,128.74,128.63,20.17]
[1720401086653,100.0,128.76,128.66,40.39]
[1720401086858,114.5,128.82,128.7,40.39]
[1720401087040,16.5944,128.84,128.71,20.17]
[1720401087041,100.0,128.79,128.71,20.17]
[1720401087250,6.1574,128.9,128.71,20.17]
[1720401087251,0.4412272,128.8,128.71,20.17]
[1720401087538,0.4412272,128.8,128.74,40.39]
[1720401087861,0.4412272,128.8,128.75,20.17]
[1720401088671,100.0,128.88,128.75,25.6067]
[1720401088859,100.0,128.86,128.75,20.17]
[1720401089039,14.5,128.85,128.75,20.17]
[1720401089235,114.5,128.8,128.63,4.0479]
[1720401089536,0.938044,128.89,128.64,40.39]
[1720401089537,114.5,128.76,128.64,40.39]
[1720401089747,14.5,128.74,128.64,40.39]
[1720401089946,100.0,128.73,128.62,6.5785]
[1720401090854,14.5,128.78,128.68,40.39]
[1720401091045,100.0,128.79,128.68,40.39]
[1720401091244,14.5,128.8,128.68,40.39]
[1720401091549,15.94,128.84,128.69,0.17]
[1720401091550,100.0,128.79,128.69,0.17]
[1720401091770,14.5,128.8,128.69,20.17]
[1720401091946,100.0,128.76,128.69,20.0]
[1720401092255,15.94,128.84,128.69,20.0]
[1720401092256,100.0,128.78,128.69,20.0]
[1720401092460,100.0,128.78,128.68,20.0]
[1720401092651,100.0,128.78,128.67,20.0]
[1720401092963,14.5,128.82,128.7,5.4389]
[1720401093161,114.5,128.82,128.71,20.0]
[1720401093340,100.0,128.79,128.71,20.0]
[1720401093549,100.0,128.77,128.58,23.78]
[1720401093741,114.5,128.76,128.64,40.39]
[1720401093935,14.5,128.76,128.64,40.39]
[1720401094137,14.5,128.8,128.64,40.39]
[1720401094446,100.0,128.81,128.68,40.39]
[1720401094651,100.0,128.79,128.68,40.39]
[1720401094842,14.5,128.79,128.68,40.39]
[1720401095061,114.5,128.75,128.64,40.39]
[1720401095360,14.5,128.73,128.61,5.4428]
[1720401095561,100.0,128.81,128.68,45.8294]
[1720401095772,100.0,128.81,128.68,40.39]
[1720401095944,14.5,128.86,128.71,5.4385]
[1720401096143,100.0,128.83,128.72,40.39]
[1720401096359,100.0,128.81,128.72,40.39]
[1720401096548,100.0,128.83,128.73,0.17]
[1720401096761,100.0,128.83,128.73,20.17]
[1720401097058,100.0,128.87,128.76,40.39]
[1720401097239,100.0,128.87,128.77,20.17]
[1720401097440,0.938044,128.89,128.77,20.17]
[1720401097741,0.938044,128.89,128.84,5.4329]
[1720401097945,0.938044,128.89,128.85,20.17]
[1720401098174,100.0,128.96,128.85,20.17]
[1720401099063,14.5,128.97,128.88,40.39]
[1720401099288,14.5,128.97,128.89,20.17]
[1720401099571,100.0,128.99,128.89,20.17]
[1720401099956,100.0,128.99,128.9,5.4305]
[1720401100144,114.54609845,129.05,128.92,40.39]
[1720401100349,100.04609845,129.05,128.93,0.17]
[1720401100649,100.04609845,129.05,128.93,20.17]
[1720401100864,100.0,129.04,128.93,20.17]
[1720401101162,100.04609845,129.05,128.93,20.17]
[1720401101357,0.04609845,129.05,128.96,40.39]
[1720401101571,0.04609845,129.05,128.97,20.17]
[1720401102142,0.04609845,129.05,128.97,0.17]
[1720401102357,0.04609845,129.05,128.98,20.0]
[1720401102544,0.04609845,129.05,128.99,40.56]
[1720401102754,0.04609845,129.05,129.0,26.5837]
[1720401103064,0.04609845,129.05,129.0,26.7537]
[1720401103259,14.5,129.16,129.03,40.39]
[1720401103458,14.5,129.16,129.04,20.17]
[1720401103844,14.5,129.12,129.04,20.17]
[1720401104040,100.0,129.15,129.04,20.17]
[1720401104282,100.0,129.15,129.05,20.0]
[1720401104451,14.5,129.14,129.06,0.17]
[1720401104644,114.5,129.14,129.02,20.0]
[1720401104981,100.0,129.14,129.02,20.0]
[1720401105266,100.0,129.14,128.97,23.28]
[1720401105267,14.5,129.14,128.99,40.39]
[1720401105476,14.5,129.08,128.94,49.4642]
[1720401105649,100.0,129.09,128.94,49.4642]
[1720401105650,14.5,129.06,128.94,113.1342]
[1720401105842,0.938044,129.18,128.98,63.67]
[1720401105843,14.5,129.12,128.98,63.67]
[1720401106048,14.5,129.16,129.03,5.4247]
[1720401106250,14.5,129.16,129.02,40.39]
[1720401106472,14.5,129.16,129.06,40.39]
[1720401106851,14.5,129.16,129.07,20.0]